fUST/lending_fUST_20250809
["ID","MTS","AMOUNT","RATE_DAILY","PERIOD"]
[378116499,1754737846125,-1129.02027479,0.00022868,2]
[378116500,1754737846134,-1051.71139538,0.00022868,2]
[378116502,1754737846144,-1500.0,0.00022868,2]
[378116503,1754737846154,-853.2149359,0.00022868,2]
[378116505,1754737846163,-151.0,0.000229,8]
[378116507,1754737846173,-151.0,0.000229,8]
[378116509,1754737846183,-2150.0,0.0002292,2]
[378116510,1754737846193,-971.0,0.0002292,2]
[378116519,1754737846388,-636.0,0.0002292,2]
[378116520,1754737846400,-500.0,0.00022925,2]
[378116521,1754737846409,-500.0,0.00022925,2]
[378116522,1754737846419,-200.0,0.00023,2]
[378116523,1754737846428,-160.0,0.00023,2]
[378116524,1754737846438,-460.0,0.00023013,2]
[378116525,1754737846448,-332.69,0.00023013,2]
[378116526,1754737846458,-153.672951,0.00023013,7]
[378116527,1754737846467,-460.0,0.00023013,2]
[378116528,1754737846476,-460.0,0.00023013,2]
[378116529,1754737846486,-553.79,0.00023013,2]
[378116530,1754737846495,-460.0,0.00023013,2]
[378116531,1754737846505,-966.14,0.00023013,2]
[378116532,1754737846515,-826.92,0.00023013,2]
[378116533,1754737846525,-543.6,0.00023013,2]
[378116535,1754737846537,-151.0,0.00023013,7]
[378116537,1754737846546,-575.63,0.00023013,2]
[378116538,1754737846555,-460.0,0.00023013,2]
[378116539,1754737846564,-151.0,0.00023013,7]
[378116540,1754737846573,-606.27,0.00023013,2]
[378116541,1754737846583,-294.763264,0.00023013,2]
[378116542,1754737846593,-717.66,0.00023013,2]
[378116543,1754737846605,-460.0,0.00023013,2]
[378116544,1754737846615,-577.05,0.00023013,2]
[378116545,1754737846624,-460.0,0.00023013,2]
[378116546,1754737846634,-460.0,0.00023013,2]
[378116547,1754737846643,-460.0,0.00023013,2]
[378116548,1754737846652,-827.44,0.00023013,2]
[378116549,1754737846662,-460.0,0.00023013,2]
[378116550,1754737846676,-460.0,0.00023013,2]
[378116551,1754737846687,-460.0,0.00023013,2]
[378116552,1754737846696,-460.0,0.00023013,2]
[378116553,1754737846707,-460.0,0.00023013,2]
[378116554,1754737846718,-413.59138529,0.00023013,2]
[378116555,1754737846727,-721.3,0.00023013,2]
[378116556,1754737846736,-460.0,0.00023013,2]
[378116557,1754737846745,-1134.05,0.00023013,2]
[378116558,1754737846755,-871.0,0.00023013,2]
[378116559,1754737846764,-1233.03,0.00023013,2]
[378116560,1754737846773,-460.0,0.00023013,2]
[378116561,1754737846782,-550.56,0.00023013,2]
[378116562,1754737846791,-460.0,0.00023013,2]
[378116563,1754737846801,-901.87,0.00023013,2]
[378116564,1754737846810,-2923.86,0.00023013,2]
[378116565,1754737846820,-485.31,0.00023013,2]
[378116566,1754737846829,-460.0,0.00023013,2]
[378116567,1754737846839,-678.0,0.00023013,2]
[378116568,1754737846848,-1048.07,0.00023013,2]
[378116569,1754737846858,-460.0,0.00023013,2]
[378116570,1754737846867,-1067.59,0.00023013,2]
[378116571,1754737846877,-507.94,0.00023013,2]
[378116572,1754737846886,-714.05,0.00023013,2]
[378116573,1754737846895,-460.0,0.00023013,2]
[378116574,1754737846905,-460.0,0.00023013,2]
[378116575,1754737846915,-517.36,0.00023013,2]
[378116576,1754737846925,-460.0,0.00023013,2]
[378116577,1754737846935,-3130.02,0.00023013,2]
[378116578,1754737846944,-460.0,0.00023013,2]
[378116579,1754737846953,-507.25,0.00023013,2]
[378116580,1754737846963,-628.17,0.00023013,2]
[378116581,1754737846973,-2497.81,0.00023013,2]
[378116582,1754737846982,-541.651891,0.00023013,7]
[378116583,1754737846992,-2601.92,0.00023013,2]
[378116584,1754737847001,-541.651891,0.00023013,7]
[378116585,1754737847011,-4866.74,0.00023013,2]
[378116586,1754737847021,-460.0,0.00023013,2]
[378116587,1754737847030,-460.0,0.00023013,2]
[378116588,1754737847039,-709.84,0.00023013,2]
[378116589,1754737847049,-460.0,0.00023013,2]
[378116590,1754737847058,-868.44,0.00023013,2]
[378116591,1754737847067,-1531.27,0.00023013,2]
[378116592,1754737847076,-460.0,0.00023013,2]
[378116593,1754737847085,-460.0,0.00023013,2]
[378116594,1754737847095,-514.62,0.00023013,2]
[378116595,1754737847104,-460.0,0.00023013,2]
[378116596,1754737847113,-460.0,0.00023013,2]
[378116597,1754737847122,-1356.23,0.00023013,2]
[378116598,1754737847131,-151.0,0.00023013,7]
[378116599,1754737847140,-589.33,0.00023013,2]
[378116600,1754737847150,-460.0,0.00023013,2]
[378116601,1754737847159,-1177.32,0.00023013,2]
[378116602,1754737847167,-617.98,0.00023013,2]
[378116603,1754737847177,-460.0,0.00023013,2]
[378116604,1754737847186,-460.0,0.00023013,2]
[378116605,1754737847195,-460.0,0.00023013,2]
[378116606,1754737847204,-151.0,0.00023013,7]
[378116607,1754737847213,-748.1,0.00023013,2]
[378116608,1754737847222,-151.0,0.00023013,7]
[378116609,1754737847231,-611.02,0.00023013,2]
[378116610,1754737847241,-539.32,0.00023013,2]
[378116611,1754737847250,-460.0,0.00023013,2]
[378116612,1754737847259,-907.86,0.00023013,2]
[378116613,1754737847269,-460.0,0.00023013,2]
[378116614,1754737847278,-1426.0,0.00023013,2]
[378116615,1754737847287,-1460.77,0.00023013,2]
[378116616,1754737847296,-1833.65,0.00023013,2]
[378116617,1754737847307,-900.14,0.00023013,2]
[378116618,1754737847316,-460.0,0.00023013,2]
[378116619,1754737847325,-460.78,0.00023013,2]
[378116620,1754737847334,-460.0,0.00023013,2]
[378116621,1754737847344,-1276.56,0.00023013,2]
[378116622,1754737847354,-754.73,0.00023013,2]
[378116623,1754737847363,-1593.67,0.00023013,2]
[378116624,1754737847372,-500.0,0.00023013,2]
[378116625,1754737847382,-379.83441443,0.00023013,2]
[378116626,1754737847391,-215.40758176,0.00023013,7]
[378116627,1754737847400,-12666.14847857,0.00023013,7]
[378116628,1754737847409,-460.82111399,0.00023013,2]
[378116629,1754737847418,-553.13,0.00023013,2]
[378116630,1754737847427,-151.0,0.00023014,7]
[378116631,1754737847436,-151.0,0.00023014,7]
[378116632,1754737847445,-151.0,0.00023014,7]
[378116633,1754737847454,-151.0,0.00023014,7]
[378116634,1754737847463,-1000.0,0.00023021,2]
[378116635,1754737847473,-719.71722395,0.00023021,2]
[378116636,1754737847482,-263.159035,0.00023068,7]
[378116637,1754737847491,-263.159035,0.00023068,7]
[378116638,1754737847500,-298.93441596,0.00023068,2]
[378116639,1754737847510,-1003.70740541,0.00023068,2]
[378116640,1754737847518,-752.95218013,0.00023068,2]
[378116641,1754737847528,-1500.0,0.00023068,2]
[378116642,1754737847536,-392.45056509,0.00023068,2]
[378116643,1754737847546,-1500.0,0.00023068,2]
[378116644,1754737847555,-516.63213011,0.00023068,2]
[378116645,1754737847564,-1500.0,0.00023068,2]
[378116646,1754737847573,-1500.0,0.00023068,2]
[378116647,1754737847582,-151.0,0.000231,9]
[378116648,1754737847592,-486.86,0.00023129,3]
[378116649,1754737847606,-151.0,0.0002317,3]
[378116650,1754737847615,-500.0,0.0002317,3]
[378116651,1754737847623,-153.19746771,0.0002317,3]
[378116652,1754737847632,-274.93361934,0.0002317,3]
[378116653,1754737847642,-151.0,0.0002317,3]
[378116654,1754737847651,-151.0,0.0002317,3]
[378116655,1754737847661,-158.21,0.00023211,2]
[378116656,1754737847670,-1032.76,0.00023211,2]
[378116657,1754737847680,-151.0,0.00023268,7]
[378116658,1754737847690,-187.308952,0.00023268,7]
[378116659,1754737847699,-187.308952,0.00023268,7]
[378116660,1754737847708,-151.0,0.00023268,7]
[378116661,1754737847717,-1500.0,0.00023268,2]
[378116662,1754737847726,-1500.0,0.00023268,2]
[378116663,1754737847736,-1500.0,0.00023268,2]
[378116664,1754737847747,-1506.31553769,0.00023268,2]
[378116665,1754737847759,-1500.0,0.00023268,2]
[378116666,1754737847771,-513.97520851,0.00023268,2]
[378116667,1754737847781,-1500.0,0.00023268,2]
[378116668,1754737847794,-1611.70560262,0.00023268,2]
[378116669,1754737847805,-151.0,0.00023273,2]
[378116670,1754737847818,-434.549649,0.00023287,7]
[378116671,1754737847829,-434.549649,0.00023287,7]
[378116672,1754737847847,-460.0,0.00023287,2]
[378116673,1754737847863,-151.0,0.00023287,7]
[378116674,1754737847875,-151.0,0.00023287,7]
[378116675,1754737847887,-460.0,0.00023287,2]
[378116676,1754737847898,-460.0,0.00023287,2]
[378116677,1754737847910,-553.79,0.00023287,2]
[378116678,1754737847921,-460.0,0.00023287,2]
[378116679,1754737847932,-966.14,0.00023287,2]
[378116680,1754737847942,-826.92,0.00023287,2]
[378116681,1754737847952,-543.6,0.00023287,2]
[378116682,1754737847962,-575.63,0.00023287,2]
[378116683,1754737847972,-182.24533123,0.00023287,2]
[378116684,1754737847982,-606.27,0.00023287,2]
[378116685,1754737847992,-717.66,0.00023287,2]
[378116686,1754737848002,-460.0,0.00023287,2]
[378116687,1754737848011,-577.05,0.00023287,2]
[378116688,1754737848022,-151.0,0.00023287,7]
[378116689,1754737848033,-151.0,0.00023287,7]
[378116690,1754737848044,-167.39355815,0.00023287,2]
[378116691,1754737848055,-460.0,0.00023287,2]
[378116692,1754737848067,-460.0,0.00023287,2]
[378116693,1754737848082,-827.44,0.00023287,2]
[378116694,1754737848098,-418.349643,0.00023287,7]
[378116695,1754737848108,-460.0,0.00023287,2]
[378116696,1754737848120,-418.349643,0.00023287,7]
[378116697,1754737848131,-460.0,0.00023287,2]
[378116698,1754737848143,-460.0,0.00023287,2]
[378116699,1754737848155,-373.38467414,0.00023287,2]
[378116700,1754737848167,-721.3,0.00023287,2]
[378116701,1754737848178,-767.33403857,0.00023287,2]
[378116702,1754737848189,-460.0,0.00023287,2]
[378116703,1754737848199,-1134.05,0.00023287,2]
[378116704,1754737848209,-871.0,0.00023287,2]
[378116705,1754737848220,-1233.03,0.00023287,2]
[378116706,1754737848231,-460.0,0.00023287,2]
[378116707,1754737848242,-550.56,0.00023287,2]
[378116708,1754737848252,-460.0,0.00023287,2]
[378116709,1754737848261,-901.87,0.00023287,2]
[378116710,1754737848271,-2923.86,0.00023287,2]
[378116711,1754737848281,-460.0,0.00023287,2]
[378116712,1754737848290,-678.0,0.00023287,2]
[378116713,1754737848300,-1048.07,0.00023287,2]
[378116714,1754737848310,-390.19925988,0.00023287,2]
[378116715,1754737848320,-1067.59,0.00023287,2]
[378116716,1754737848331,-714.05,0.00023287,2]
[378116717,1754737848345,-507.94,0.00023287,2]
[378116718,1754737848356,-559.17158442,0.00023287,2]
[378116719,1754737848367,-460.0,0.00023287,2]
[378116720,1754737848377,-517.36,0.00023287,2]
[378116721,1754737848387,-460.0,0.00023287,2]
[378116722,1754737848397,-3130.02,0.00023287,2]
[378116723,1754737848407,-460.0,0.00023287,2]
[378116724,1754737848418,-507.25,0.00023287,2]
[378116725,1754737848427,-628.17,0.00023287,2]
[378116726,1754737848438,-2497.81,0.00023287,2]
[378116727,1754737848448,-865.590571,0.00023287,7]
[378116728,1754737848460,-2601.92,0.00023287,2]
[378116729,1754737848470,-865.590571,0.00023287,7]
[378116730,1754737848480,-4866.74,0.00023287,2]
[378116731,1754737848489,-460.0,0.00023287,2]
[378116732,1754737848499,-460.0,0.00023287,2]
[378116733,1754737848510,-709.84,0.00023287,2]
[378116734,1754737848519,-460.0,0.00023287,2]
[378116735,1754737848530,-868.44,0.00023287,2]
[378116736,1754737848540,-1531.27,0.00023287,2]
[378116737,1754737848550,-460.0,0.00023287,2]
[378116738,1754737848560,-514.62,0.00023287,2]
[378116739,1754737848571,-460.0,0.00023287,2]
[378116740,1754737848582,-460.0,0.00023287,2]
[378116741,1754737848595,-1356.23,0.00023287,2]
[378116742,1754737848608,-589.33,0.00023287,2]
[378116743,1754737848619,-1177.32,0.00023287,2]
[378116744,1754737848628,-617.98,0.00023287,2]
[378116745,1754737848638,-460.0,0.00023287,2]
[378116746,1754737848648,-460.0,0.00023287,2]
[378116747,1754737848658,-460.0,0.00023287,2]
[378116748,1754737848667,-748.1,0.00023287,2]
[378116749,1754737848679,-611.02,0.00023287,2]
[378116750,1754737848688,-539.32,0.00023287,2]
[378116751,1754737848698,-460.0,0.00023287,2]
[378116752,1754737848708,-907.86,0.00023287,2]
[378116753,1754737848718,-460.0,0.00023287,2]
[378116754,1754737848728,-1426.0,0.00023287,2]
[378116755,1754737848738,-1460.77,0.00023287,2]
[378116756,1754737848748,-1833.65,0.00023287,2]
[378116757,1754737848758,-900.14,0.00023287,2]
[378116758,1754737848770,-460.0,0.00023287,2]
[378116759,1754737848780,-460.78,0.00023287,2]
[378116760,1754737848789,-460.0,0.00023287,2]
[378116761,1754737848799,-1276.56,0.00023287,2]
[378116762,1754737848809,-754.73,0.00023287,2]
[378116763,1754737848818,-1593.67,0.00023287,2]
[378116764,1754737848828,-553.13,0.00023287,2]
[378116765,1754737848837,-151.0,0.00023288,7]
[378116766,1754737848848,-151.0,0.00023288,7]
[378116767,1754737848857,-500.0,0.00023288,2]
[378116768,1754737848866,-151.0,0.000233,10]
[378116769,1754737848877,-1681.27956778,0.00023309,2]
[378116770,1754737848887,-151.0,0.00023321,7]
[378116771,1754737848897,-151.0,0.00023321,7]
[378116772,1754737848908,-151.0,0.00023321,7]
[378116773,1754737848918,-309.0,0.00023338,2]
[378116774,1754737848927,-160.0,0.00023344,2]
[378116775,1754737848937,-150.358,0.00023346,2]
[378116776,1754737848947,-150.109,0.00023346,2]
[378116777,1754737848956,-150.0,0.00023369,2]
[378116778,1754737848968,-169.21972488,0.00023383,2]
[378116779,1754737848978,-5244.93277317,0.00023409,2]
[378116780,1754737848988,-219.32935922,0.00023416,2]
[378116781,1754737848998,-2000.0,0.00023416,2]
[378116782,1754737849008,-2000.0,0.00023416,2]
[378116783,1754737849018,-168.0,0.0002342,2]
[378116784,1754737849028,-168.0,0.00023439,2]
[378116785,1754737849038,-153.71647018,0.00023444,3]
[378116786,1754737849048,-577.35352861,0.00023444,3]
[378116787,1754737849057,-151.0,0.00023444,3]
[378116788,1754737849067,-294.08646877,0.00023444,3]
[378116789,1754737849078,-500.0,0.00023473,2]
[378116790,1754737849087,-592.35057706,0.00023473,2]
[378116791,1754737849098,-4000.0,0.00023489,2]
[378116792,1754737849107,-1000.0,0.000235,2]
[378116793,1754737849117,-151.0,0.000235,7]
[378116794,1754737849127,-50000.0,0.000235,7]
[378116795,1754737849137,-151.0,0.000235,7]
[378116796,1754737849147,-151.0,0.000235,7]
[378116797,1754737849157,-151.0,0.000235,7]
[378116798,1754737849167,-160.0,0.000235,7]
[378116799,1754737849177,-541.651891,0.000235,7]
[378116800,1754737849186,-541.651891,0.000235,7]
[378116801,1754737849196,-187.308952,0.000235,7]
[378116802,1754737849205,-187.308952,0.000235,7]
[378116803,1754737849216,-151.0,0.000235,7]
[378116804,1754737849226,-151.0,0.000235,7]
[378116805,1754737849236,-151.0,0.000235,7]
[378116806,1754737849245,-151.0,0.000235,7]
[378116807,1754737849255,-151.0,0.000235,7]
[378116808,1754737849264,-263.159035,0.000235,7]
[378116809,1754737849274,-263.159035,0.000235,7]
[378116810,1754737849283,-256.0,0.00023551,2]
[378116811,1754737849294,-168.0,0.00023559,2]
[378116812,1754737849304,-151.0,0.0002356,7]
[378116813,1754737849314,-151.0,0.0002356,7]
[378116814,1754737849324,-335.888351,0.00023561,7]
[378116815,1754737849333,-335.888351,0.00023561,7]
[378116816,1754737849344,-151.0,0.00023561,7]
[378116817,1754737849353,-151.0,0.00023561,7]
[378116818,1754737849363,-151.0,0.00023561,7]
[378116819,1754737849372,-151.0,0.00023561,7]
[378116820,1754737849382,-151.0,0.00023561,7]
[378116821,1754737849391,-151.0,0.00023561,7]
[378116822,1754737849401,-434.549649,0.00023561,7]
[378116823,1754737849411,-434.549649,0.00023561,7]
[378116824,1754737849421,-239.825955,0.00023561,7]
[378116825,1754737849430,-151.0,0.00023561,7]
[378116826,1754737849439,-460.0,0.00023561,2]
[378116827,1754737849448,-151.0,0.00023561,7]
[378116828,1754737849458,-151.0,0.00023561,7]
[378116829,1754737849467,-151.0,0.00023561,7]
[378116830,1754737849478,-151.0,0.00023561,7]
[378116831,1754737849487,-151.0,0.00023561,7]
[378116832,1754737849622,-151.0,0.00023561,7]
[378116833,1754737849632,-460.0,0.00023561,2]
[378116834,1754737849643,-460.0,0.00023561,2]
[378116835,1754737849653,-553.79,0.00023561,2]
[378116836,1754737849664,-460.0,0.00023561,2]
[378116837,1754737849673,-966.14,0.00023561,2]
[378116838,1754737849684,-826.92,0.00023561,2]
[378116839,1754737849695,-543.6,0.00023561,2]
[378116840,1754737849705,-151.0,0.00023561,7]
[378116841,1754737849715,-575.63,0.00023561,2]
[378116842,1754737849724,-151.0,0.00023561,7]
[378116843,1754737849734,-606.27,0.00023561,2]
[378116844,1754737849744,-717.66,0.00023561,2]
[378116845,1754737849753,-460.0,0.00023561,2]
[378116846,1754737849763,-577.05,0.00023561,2]
[378116847,1754737849773,-151.0,0.00023561,7]
[378116848,1754737849783,-210.882945,0.00023561,7]
[378116849,1754737849793,-460.0,0.00023561,2]
[378116850,1754737849802,-460.0,0.00023561,2]
[378116851,1754737849812,-827.44,0.00023561,2]
[378116852,1754737849822,-418.349643,0.00023561,7]
[378116853,1754737849832,-460.0,0.00023561,2]
[378116854,1754737849842,-418.349643,0.00023561,7]
[378116855,1754737849851,-460.0,0.00023561,2]
[378116856,1754737849860,-460.0,0.00023561,2]
[378116857,1754737849870,-721.3,0.00023561,2]
[378116858,1754737849880,-460.0,0.00023561,2]
[378116859,1754737849890,-1134.05,0.00023561,2]
[378116860,1754737849899,-871.0,0.00023561,2]
[378116861,1754737849910,-1233.03,0.00023561,2]
[378116862,1754737849920,-460.0,0.00023561,2]
[378116863,1754737849930,-550.56,0.00023561,2]
[378116864,1754737849940,-460.0,0.00023561,2]
[378116865,1754737849950,-901.87,0.00023561,2]
[378116866,1754737849959,-2923.86,0.00023561,2]
[378116867,1754737849969,-460.0,0.00023561,2]
[378116868,1754737849979,-678.0,0.00023561,2]
[378116869,1754737849989,-1048.07,0.00023561,2]
[378116870,1754737849998,-1067.59,0.00023561,2]
[378116871,1754737850008,-714.05,0.00023561,2]
[378116872,1754737850018,-507.94,0.00023561,2]
[378116873,1754737850027,-460.0,0.00023561,2]
[378116874,1754737850036,-517.36,0.00023561,2]
[378116875,1754737850046,-460.0,0.00023561,2]
[378116876,1754737850055,-3130.02,0.00023561,2]
[378116877,1754737850065,-460.0,0.00023561,2]
[378116878,1754737850075,-507.25,0.00023561,2]
[378116879,1754737850084,-628.17,0.00023561,2]
[378116880,1754737850095,-2497.81,0.00023561,2]
[378116881,1754737850104,-865.590571,0.00023561,7]
[378116882,1754737850113,-2601.92,0.00023561,2]
[378116883,1754737850122,-865.590571,0.00023561,7]
[378116884,1754737850132,-4866.74,0.00023561,2]
[378116885,1754737850141,-460.0,0.00023561,2]
[378116886,1754737850150,-460.0,0.00023561,2]
[378116887,1754737850159,-709.84,0.00023561,2]
[378116888,1754737850168,-460.0,0.00023561,2]
[378116889,1754737850178,-868.44,0.00023561,2]
[378116890,1754737850187,-1531.27,0.00023561,2]
[378116891,1754737850197,-460.0,0.00023561,2]
[378116892,1754737850207,-514.62,0.00023561,2]
[378116893,1754737850216,-460.0,0.00023561,2]
[378116894,1754737850226,-460.0,0.00023561,2]
[378116895,1754737850236,-1356.23,0.00023561,2]
[378116896,1754737850246,-589.33,0.00023561,2]
[378116897,1754737850255,-1177.32,0.00023561,2]
[378116898,1754737850265,-617.98,0.00023561,2]
[378116899,1754737850275,-460.0,0.00023561,2]
[378116900,1754737850284,-460.0,0.00023561,2]
[378116901,1754737850293,-460.0,0.00023561,2]
[378116902,1754737850303,-748.1,0.00023561,2]
[378116903,1754737850312,-611.02,0.00023561,2]
[378116904,1754737850321,-539.32,0.00023561,2]
[378116905,1754737850331,-907.86,0.00023561,2]
[378116906,1754737850340,-460.0,0.00023561,2]
[378116907,1754737850350,-460.0,0.00023561,2]
[378116908,1754737850360,-1426.0,0.00023561,2]
[378116909,1754737850370,-1460.77,0.00023561,2]
[378116910,1754737850379,-900.14,0.00023561,2]
[378116911,1754737850389,-1833.65,0.00023561,2]
[378116912,1754737850399,-460.0,0.00023561,2]
[378116913,1754737850408,-460.78,0.00023561,2]
[378116914,1754737850418,-460.0,0.00023561,2]
[378116915,1754737850427,-1276.56,0.00023561,2]
[378116916,1754737850437,-754.73,0.00023561,2]
[378116917,1754737850447,-1593.67,0.00023561,2]
[378116918,1754737850457,-553.13,0.00023561,2]
[378116919,1754737850466,-151.0,0.00023568,7]
[378116920,1754737850476,-1000.0,0.00023568,2]
[378116921,1754737850486,-1500.0,0.00023568,2]
[378116922,1754737850496,-151.0,0.00023613,7]
[378116923,1754737850506,-151.0,0.00023613,7]
[378116924,1754737850516,-151.0,0.00023613,7]
[378116925,1754737850538,-885.170646,0.00023615,7]
[378116926,1754737850559,-885.170646,0.00023615,7]
[378116927,1754737850574,-185.767744,0.00023615,7]
[378116928,1754737850584,-185.767744,0.00023615,7]
[378116929,1754737850594,-151.0,0.00023616,7]
[378116930,1754737850607,-151.0,0.00023616,7]
[378116931,1754737850616,-151.0,0.00023616,7]
[378116932,1754737850626,-151.0,0.00023616,7]
[378116933,1754737850635,-151.0,0.00023616,7]
[378116934,1754737850646,-151.0,0.00023616,7]
[378116935,1754737850656,-151.0,0.00023616,7]
[378116936,1754737850665,-151.0,0.00023616,7]
[378116937,1754737850676,-151.0,0.00023616,7]
[378116938,1754737850685,-151.0,0.00023616,7]
[378116939,1754737850695,-151.0,0.00023616,7]
[378116940,1754737850704,-151.0,0.00023616,7]
[378116941,1754737850714,-151.0,0.00023616,7]
[378116942,1754737850724,-151.0,0.00023616,7]
[378116943,1754737850733,-151.0,0.00023616,7]
[378116944,1754737850743,-151.0,0.00023616,7]
[378116945,1754737850753,-151.0,0.00023616,7]
[378116946,1754737850763,-151.0,0.00023616,7]
[378116947,1754737850772,-151.0,0.00023616,7]
[378116948,1754737850781,-151.0,0.00023616,7]
[378116949,1754737850791,-151.0,0.00023616,7]
[378116950,1754737850801,-254.338466,0.00023616,7]
[378116951,1754737850811,-151.844864,0.00023616,7]
[378116952,1754737850820,-151.0,0.00023616,7]
[378116953,1754737850830,-151.0,0.00023616,7]
[378116954,1754737850839,-151.0,0.00023616,7]
[378116955,1754737850850,-151.0,0.00023616,7]
[378116956,1754737850860,-151.0,0.00023616,7]
[378116957,1754737850869,-2000.0,0.00023616,2]
[378116958,1754737850880,-1361.96020236,0.00023616,2]
[378116959,1754737850890,-450.0,0.00023616,2]
[378116960,1754737850900,-739.35201776,0.00023616,2]
[378116961,1754737850911,-2000.0,0.00023616,2]
[378116962,1754737850920,-168.0,0.00023632,2]
[378116963,1754737850930,-184.0,0.00023648,2]
[378116964,1754737850940,-348.0,0.00023648,2]
[378116965,1754737850949,-420.0,0.00023648,2]
[378116966,1754737850960,-420.0,0.00023648,2]
[378116967,1754737850969,-300.0,0.00023648,2]
[378116968,1754737850979,-2000.0,0.00023688,2]
[378116969,1754737850989,-151.0,0.000237,5]
[378116970,1754737850999,-151.0,0.00023718,3]
[378116971,1754737851010,-168.0,0.0002372,2]
[378116972,1754737851019,-1680.0,0.00023759,2]
[378116973,1754737851029,-168.0,0.00023766,2]
[378116974,1754737851038,-168.0,0.00023794,2]
[378116975,1754737851047,-151.0,0.00023816,7]
[378116976,1754737851059,-151.0,0.00023816,7]
[378116977,1754737851068,-151.0,0.00023816,7]
[378116978,1754737851077,-151.0,0.00023816,7]
[378116979,1754737851087,-151.0,0.00023816,7]
[378116980,1754737851096,-435.730702,0.00023816,7]
[378116981,1754737851105,-435.730702,0.00023816,7]
[378116982,1754737851115,-821.287577,0.00023816,7]
[378116983,1754737851124,-821.287577,0.00023816,7]
[378116984,1754737851134,-151.0,0.00023816,7]
[378116985,1754737851144,-232.933287,0.00023816,7]
[378116986,1754737851153,-151.0,0.00023816,7]
[378116987,1754737851163,-223.495699,0.00023816,7]
[378116988,1754737851173,-223.495699,0.00023816,7]
[378116989,1754737851183,-537.01114389,0.00023816,2]
[378116990,1754737851193,-2000.0,0.00023816,2]
[378116991,1754737851203,-2000.0,0.00023816,2]
[378116992,1754737851212,-501.78237328,0.00023816,2]
[378116993,1754737851222,-2000.0,0.00023816,2]
[378116994,1754737851232,-151.0,0.00023834,7]
[378116995,1754737851242,-255.402239,0.00023834,7]
[378116996,1754737851251,-151.0,0.00023834,7]
[378116997,1754737851261,-151.0,0.00023835,7]
[378116998,1754737851270,-151.0,0.00023835,7]
[378116999,1754737851280,-434.549649,0.00023835,7]
[378117000,1754737851291,-434.549649,0.00023835,7]
[378117001,1754737851301,-151.0,0.00023835,7]
[378117002,1754737851310,-151.0,0.00023835,7]
[378117003,1754737851320,-151.0,0.00023835,7]
[378117004,1754737851329,-460.0,0.00023835,2]
[378117005,1754737851339,-151.0,0.00023835,7]
[378117006,1754737851350,-151.0,0.00023835,7]
[378117007,1754737851360,-518.120487,0.00023835,7]
[378117008,1754737851370,-518.120487,0.00023835,7]
[378117009,1754737851380,-151.0,0.00023835,7]
[378117010,1754737851390,-151.000001,0.00023835,7]
[378117011,1754737851400,-151.0,0.00023835,7]
[378117012,1754737851410,-151.0,0.00023835,7]